[Event "Romanian Championship 2024"]
[Site "Eforie Nord"]
[Date "2024.02.26"]
[Round "3.19"]
[White "Danila, Tudor-Gabriel"]
[Black "Pisu, Robert-Daniel"]
[Result "1-0"]
[ECO "B11"]
[WhiteElo "1901"]
[BlackElo "2154"]
[Annotator "RC"]
[PlyCount "83"]
[EventDate "2024.02.24"]
[EventType "swiss"]
[EventCountry "ROU"]
[SourceTitle "playchess.com"]
[Source "ChessBase"]
[SourceQuality "1"]
[TimeControl "40/5400+30:900+30"]

1. e4 {[%emt 0:00:02]} c6 {[%emt 0:00:07]} 2. Nc3 {[%emt 0:00:04]} d5 {[%emt 0:00:07]} 3. Nf3 {[%emt 0:00:04]} Nf6 {[%emt 0:00:31]} 4. e5 {[%emt 0:00:05]} Ne4 {[%emt 0:00:05]} 5. Ne2 {[%emt 0:00:04]} Qb6 {[%emt 0:00:22]} 6. d4 {[%emt 0:00:04]} e6 {[%emt 0:00:45]} 7. Ng3 {[%emt 0:00:16]} c5 {[%emt 0:00:33]} 8. Bd3 {[%emt 0:00:23]} Nxg3 {[%emt 0:00:19]} 9. fxg3 {[%emt 0:00:05]} Nc6 {[%emt 0:00:32]} 10. O-O {[%emt 0:00:12]} cxd4 {[%emt 0:00:21]} 11. a3 {[%emt 0:00:17]} Be7 {[%emt 0:08:45]} 12. b4 {[%emt 0:02:55]} a6 {[%emt 0:01:57]} 13. g4 {[%emt 0:08:05]} Bd7 {[%emt 0:07:53]} 14. Kh1 {[%emt 0:01:15]} O-O-O {[%emt 0:14:28]} 15. Qe2 {[%emt 0:04:12]} f6 {[%emt 0:12:42]} 16. Bf4 {[%emt 0:07:03]} Rdf8 {[%emt 0:12:59]} 17. Bg3 {[%emt 0:07:56]} h5 {[%emt 0:18:22]} 18. gxh5 {[%emt 0:10:13]} f5 {[%emt 0:00:50]} 19. Nh4 {[%emt 0:04:58]} Be8 {[%emt 0:03:54]} 20. Ng6 {[%emt 0:00:05]} Bxg6 {[%emt 0:00:04]} 21. hxg6 {[%emt 0:00:03]} Bg5 {[%emt 0:01:13]} 22. Rab1 {[%emt 0:00:50]} Nd8 {[%emt 0:11:07]} 23. a4 {[%emt 0:02:06]} Be3 {[%emt 0:00:20]} 24. a5 {[%emt 0:01:07]} Qc7 {[%emt 0:00:03]} 25. Bf4 {[%emt 0:00:24]} Bxf4 {[%emt 0:02:36]} 26. Rxf4 {[%emt 0:00:05]} Nc6 {[%emt 0:00:02]} 27. b5 {[%emt 0:19:29]} axb5 {[%emt 0:00:03]} 28. Re1 {[%emt 0:00:04]} Qxa5 {[%emt 0:01:43]} 29. Bxb5 {[%emt 0:00:12]} Na7 {[%emt 0:01:45]} 30. Rb1 {[%emt 0:01:09]} Nxb5 {[%emt 0:00:31]} 31. Rxb5 {[%emt 0:00:05]} Qc3 {[%emt 0:00:27]} 32. Rf3 {[%emt 0:00:09]} Qa1+ {[%emt 0:00:32]} 33. Rf1 {[%emt 0:00:05]} Qa6 {[%emt 0:00:27]} 34. Rfb1 {[%emt 0:00:12]} Re8 {[%emt 0:00:33]} 35. Rc5+ {[%emt 0:00:21]} Kd8 {[%emt 0:00:12]} 36. Qxa6 bxa6 {[%emt 0:00:01]} 37. Rb8+ {[%emt 0:01:04]} Kd7 {[%emt 0:00:04]} 38. Rb7+ {[%emt 0:00:16]} Kd8 {[%emt 0:00:09]} 39. Rxg7 {[%emt 0:07:03]} Rhg8 {[%emt 0:00:06]} 40. Ra7 {[%emt 0:00:00]} Rxg6 {[%emt 0:00:00]} 41. Rcc7 {[%emt 0:03:49]} Reg8 {[%emt 0:02:44]} 42. Rh7 {[%emt 0:00:14]} 1-0

[Event "Romanian Championship 2024"]
[Site "Eforie Nord"]
[Date "2024.02.26"]
[Round "3.20"]
[White "Voiteanu, Gabriel"]
[Black "Costescu, Mihnea-Constantin"]
[Result "1-0"]
[ECO "E12"]
[WhiteElo "2151"]
[BlackElo "1944"]
[Annotator "RC"]
[PlyCount "101"]
[EventDate "2024.02.24"]
[EventType "swiss"]
[EventCountry "ROU"]
[SourceTitle "playchess.com"]
[Source "ChessBase"]
[SourceQuality "1"]
[TimeControl "40/5400+30:900+30"]

1. d4 {[%emt 0:08:33]} Nf6 {[%emt 0:00:07]} 2. c4 {[%emt 0:00:04]} e6 {[%emt 0:00:04]} 3. Nf3 {[%emt 0:00:15]} b6 {[%emt 0:00:05]} 4. a3 {[%emt 0:00:41]} Bb7 {[%emt 0:00:27]} 5. Nc3 {[%emt 0:00:06]} d5 {[%emt 0:02:21]} 6. cxd5 {[%emt 0:00:10]} Nxd5 {[%emt 0:00:36]} 7. Bd2 {[%emt 0:00:09]} Be7 {[%emt 0:02:18]} 8. Qc2 {[%emt 0:00:11]} O-O {[%emt 0:01:25]} 9. e4 {[%emt 0:00:27]} Nxc3 {[%emt 0:00:20]} 10. Bxc3 {[%emt 0:00:09]} c5 {[%emt 0:01:01]} 11. O-O-O {[%emt 0:02:19]} cxd4 {[%emt 1:27:16]} 12. Nxd4 {[%emt 0:01:33]} Qc8 {[%emt 0:00:00]} 13. h4 {[%emt 0:04:22]} Nc6 {[%emt 0:00:00]} 14. Rh3 {[%emt 0:07:36]} Nxd4 {[%emt 0:00:00]} 15. Rxd4 {[%emt 0:00:14]} Bc5 {[%emt 0:00:00]} 16. Rd2 {[%emt 0:06:03]} e5 {[%emt 0:00:00]} 17. Bxe5 {[%emt 0:15:12]} Qe6 {[%emt 0:00:00]} 18. f4 {[%emt 0:06:20]} Rfc8 {[%emt 0:00:00]} 19. Bc4 {[%emt 0:08:49]} Be3 {[%emt 0:00:00]} 20. Bxe6 {[%emt 0:10:13]} Bxd2+ {[%emt 0:00:00]} 21. Kxd2 {[%emt 0:00:27]} Rxc2+ {[%emt 0:00:00]} 22. Kxc2 {[%emt 0:00:03]} Bxe4+ {[%emt 0:00:00]} 23. Kc3 {[%emt 0:01:42]} fxe6 {[%emt 0:00:00]} 24. Rg3 {[%emt 0:02:07]} g6 {[%emt 0:00:00]} 25. Kd4 {[%emt 0:00:58]} Bf5 {[%emt 0:00:00]} 26. h5 {[%emt 0:01:41]} Rd8+ {[%emt 0:00:00]} 27. Kc4 {[%emt 0:00:44]} Rd5 {[%emt 0:00:00]} 28. a4 {[%emt 0:02:31]} a6 {[%emt 0:00:00]} 29. Bd4 {[%emt 0:06:28]} b5+ {[%emt 0:00:00]} 30. axb5 {[%emt 0:00:03]} axb5+ {[%emt 0:00:00]} 31. Kc3 {[%emt 0:00:03]} Kf7 {[%emt 0:00:00]} 32. h6 {[%emt 0:00:38]} Be4 {[%emt 0:00:00]} 33. Be5 {[%emt 0:01:46]} Bf5 {[%emt 0:00:00]} 34. Re3 {[%emt 0:01:21]} Ke7 {[%emt 0:00:00]} 35. Kb4 {[%emt 0:01:17]} Bd3 {[%emt 0:00:01]} 36. Re1 {[%emt 0:00:34]} g5 {[%emt 0:05:43]} 37. fxg5 {[%emt 0:00:47]} Kf7 {[%emt 0:00:08]} 38. g4 {[%emt 0:01:43]} Kg6 {[%emt 0:01:30]} 39. Bf6 {[%emt 0:00:22]} e5 {[%emt 0:01:14]} 40. Kc3 {[%emt 0:00:00]} Bc4 {[%emt 0:00:00]} 41. Ra1 {[%emt 0:07:56]} Rd6 {[%emt 0:11:09]} 42. Ra7 {[%emt 0:02:10]} Bf7 {[%emt 0:00:28]} 43. Bxe5 {[%emt 0:04:32]} Rc6+ {[%emt 0:02:39]} 44. Kd3 {[%emt 0:00:08]} Rc4 {[%emt 0:01:41]} 45. Bd4 {[%emt 0:00:08]} Rc6 {[%emt 0:01:00]} 46. b3 {[%emt 0:04:03]} Rd6 {[%emt 0:03:21]} 47. Ke4 {[%emt 0:02:17]} Re6+ {[%emt 0:01:16]} 48. Kf4 {[%emt 0:01:02]} Re1 {[%emt 0:00:48]} 49. Be3 {[%emt 0:01:07]} Rf1+ {[%emt 0:01:41]} 50. Ke5 {[%emt 0:01:06]} Re1 {[%emt 0:00:45]} 51. Ra6+ {[%emt 0:01:00]} 1-0

[Event "Romanian Championship 2024"]
[Site "Eforie Nord"]
[Date "2024.02.26"]
[Round "3.21"]
[White "Lucaci, Alin-Marian"]
[Black "Prelipcean, Eric-Matei"]
[Result "0-1"]
[ECO "D96"]
[WhiteElo "1749"]
[BlackElo "2103"]
[Annotator "RC"]
[PlyCount "78"]
[EventDate "2024.02.24"]
[EventType "swiss"]
[EventCountry "ROU"]
[SourceTitle "playchess.com"]
[Source "ChessBase"]
[SourceQuality "1"]
[TimeControl "40/5400+30:900+30"]

1. d4 {[%emt 0:00:03]} Nf6 {[%emt 0:02:25]} 2. c4 {[%emt 0:00:05]} g6 {[%emt 0:00:04]} 3. Nc3 {[%emt 0:00:03]} d5 {[%emt 0:00:05]} 4. Nf3 {[%emt 0:00:04]} Bg7 {[%emt 0:00:07]} 5. Qb3 {[%emt 0:00:06]} dxc4 {[%emt 0:06:58]} 6. Qxc4 {[%emt 0:00:07]} a6 {[%emt 0:00:08]} 7. Bf4 {[%emt 0:12:34]} c6 {[%emt 0:03:42]} 8. e4 {[%emt 0:02:50]} b5 {[%emt 0:03:22]} 9. Qd3 {[%emt 0:08:19]} Be6 {[%emt 0:06:23]} 10. Be2 {[%emt 0:08:01]} Nbd7 {[%emt 0:05:43]} 11. Nd2 {[%emt 0:07:35]} Nb6 {[%emt 0:11:21]} 12. b3 {[%emt 0:11:27]} c5 {[%emt 0:06:36]} 13. Be3 {[%emt 0:20:05]} Ng4 {[%emt 0:02:04]} 14. Nf3 {[%emt 0:07:40]} c4 {[%emt 0:07:03]} 15. bxc4 {[%emt 0:03:53]} Bxc4 {[%emt 0:00:35]} 16. Qd2 {[%emt 0:01:12]} Bxe2 {[%emt 0:02:44]} 17. Qxe2 {[%emt 0:00:21]} Rc8 {[%emt 0:01:42]} 18. Nd1 {[%emt 0:01:33]} Nxe3 {[%emt 0:03:45]} 19. fxe3 {[%emt 0:04:10]} Qc7 {[%emt 0:01:11]} 20. O-O {[%emt 0:00:38]} Qc2 {[%emt 0:01:57]} 21. Qxc2 {[%emt 0:02:29]} Rxc2 {[%emt 0:00:02]} 22. Rf2 {[%emt 0:01:00]} Rc7 {[%emt 0:00:16]} 23. Nb2 {[%emt 0:01:48]} Bh6 {[%emt 0:01:13]} 24. Re2 {[%emt 0:00:27]} O-O {[%emt 0:02:45]} 25. Nd3 {[%emt 0:01:39]} Rc3 {[%emt 0:00:21]} 26. Nfe1 {[%emt 0:00:17]} Nc4 {[%emt 0:02:08]} 27. Kf2 {[%emt 0:00:34]} Rc8 {[%emt 0:00:16]} 28. g4 {[%emt 0:01:21]} Rc6 {[%emt 0:01:28]} 29. e5 {[%emt 0:01:44]} f6 {[%emt 0:01:13]} 30. d5 {[%emt 0:01:13]} Rb6 {[%emt 0:00:19]} 31. e6 {[%emt 0:00:10]} Rd6 {[%emt 0:00:33]} 32. e4 {[%emt 0:00:15]} f5 {[%emt 0:00:34]} 33. gxf5 {[%emt 0:00:51]} gxf5 {[%emt 0:00:02]} 34. Nb4 {[%emt 0:00:46]} Be3+ {[%emt 0:01:46]} 35. Kg2 {[%emt 0:00:45]} fxe4 {[%emt 0:00:53]} 36. Rd1 {[%emt 0:00:32]} Bg5 {[%emt 0:01:31]} 37. Kh1 {[%emt 0:00:32]} Ne3 {[%emt 0:01:01]} 38. Rd4 {[%emt 0:01:07]} a5 {[%emt 0:00:51]} 39. Nc6 {[%emt 0:00:34]} Rcxc6 {[%emt 0:00:39]} 0-1

[Event "Romanian Championship 2024"]
[Site "Eforie Nord"]
[Date "2024.02.26"]
[Round "3.22"]
[White "Botea, David-Alexandru"]
[Black "Visanescu, Dragos-Nicholas"]
[Result "1-0"]
[ECO "C90"]
[WhiteElo "2081"]
[BlackElo "1759"]
[Annotator "RC"]
[PlyCount "73"]
[EventDate "2024.02.24"]
[EventType "swiss"]
[EventCountry "ROU"]
[SourceTitle "playchess.com"]
[Source "ChessBase"]
[SourceQuality "1"]
[TimeControl "40/5400+30:900+30"]

1. e4 {[%emt 0:00:22]} e5 {[%emt 0:00:06]} 2. Nf3 {[%emt 0:00:04]} Nc6 {[%emt 0:00:05]} 3. Bb5 {[%emt 0:00:09]} a6 {[%emt 0:00:06]} 4. Ba4 {[%emt 0:00:05]} Nf6 {[%emt 0:00:32]} 5. O-O {[%emt 0:02:38]} Be7 {[%emt 0:02:23]} 6. d3 {[%emt 0:03:59]} b5 {[%emt 0:00:39]} 7. Bb3 {[%emt 0:00:05]} d6 {[%emt 0:00:05]} 8. c3 {[%emt 0:00:25]} O-O {[%emt 0:00:35]} 9. Re1 {[%emt 0:01:01]} Re8 {[%emt 0:06:51]} 10. Nbd2 {[%emt 0:04:42]} Bf8 {[%emt 0:00:58]} 11. Nf1 {[%emt 0:00:53]} h6 {[%emt 0:01:25]} 12. Ng3 {[%emt 0:01:13]} Na5 {[%emt 0:01:24]} 13. Bc2 {[%emt 0:00:38]} c5 {[%emt 0:00:16]} 14. d4 {[%emt 0:03:04]} cxd4 {[%emt 0:06:09]} 15. cxd4 exd4 {[%emt 0:09:02]} 16. Nxd4 {[%emt 0:03:27]} Bb7 {[%emt 0:01:19]} 17. b3 {[%emt 0:09:42]} Nc6 {[%emt 0:04:58]} 18. Nxc6 {[%emt 0:09:09]} Bxc6 {[%emt 0:00:16]} 19. Bb2 {[%emt 0:01:10]} Re6 {[%emt 0:23:15]} 20. Qd3 {[%emt 0:11:12]} g6 {[%emt 0:15:14]} 21. Rad1 {[%emt 0:08:50]} Qb6 {[%emt 0:03:02]} 22. Bd4 {[%emt 0:11:54]} Qb7 {[%emt 0:00:53]} 23. f3 {[%emt 0:01:13]} Rae8 {[%emt 0:02:41]} 24. b4 {[%emt 0:03:01]} d5 {[%emt 0:05:46]} 25. Qc3 {[%emt 0:00:34]} Bg7 {[%emt 0:04:02]} 26. e5 {[%emt 0:01:57]} Nh7 {[%emt 0:07:28]} 27. f4 {[%emt 0:01:25]} Bd7 {[%emt 0:01:34]} 28. f5 {[%emt 0:02:36]} Rc6 {[%emt 0:00:25]} 29. Bc5 {[%emt 0:00:39]} gxf5 {[%emt 0:01:46]} 30. Nxf5 {[%emt 0:01:01]} Bxf5 {[%emt 0:00:57]} 31. Bxf5 {[%emt 0:00:02]} Bf8 {[%emt 0:01:12]} 32. Rxd5 {[%emt 0:01:46]} Bxc5+ {[%emt 0:00:32]} 33. bxc5 {[%emt 0:00:42]} Rf6 {[%emt 0:00:32]} 34. exf6 {[%emt 0:01:22]} Rxe1+ {[%emt 0:00:15]} 35. Qxe1 {[%emt 0:00:01]} Qxd5 {[%emt 0:00:40]} 36. Qg3+ {[%emt 0:00:03]} Ng5 {[%emt 0:00:32]} 37. Qb8+ {[%emt 0:00:09]} 1-0

[Event "Romanian Championship 2024"]
[Site "Eforie Nord"]
[Date "2024.02.26"]
[Round "3.23"]
[White "Moraru, Stefan-Robert"]
[Black "Ciocani, Iosif"]
[Result "0-1"]
[ECO "B48"]
[WhiteElo "1221"]
[BlackElo "2063"]
[Annotator "NA RC"]
[PlyCount "116"]
[EventDate "2024.02.24"]
[EventType "swiss"]
[EventCountry "ROU"]
[SourceTitle "playchess.com"]
[Source "ChessBase"]
[SourceQuality "1"]
[TimeControl "40/5400+30:900+30"]

1. e4 {[%emt 0:00:02]} c5 {[%emt 0:02:16]} 2. Nf3 {[%emt 0:00:06]} e6 {[%emt 0:00:07]} 3. d4 {[%emt 0:00:05]} cxd4 {[%emt 0:00:07]} 4. Nxd4 {[%emt 0:00:04]} Nc6 {[%emt 0:00:13]} 5. Be3 {[%emt 0:00:09]} Qc7 {[%emt 0:00:34]} 6. Nc3 {[%emt 0:00:06]} a6 {[%emt 0:00:18]} 7. Bc4 {[%emt 0:01:05]} Nf6 {[%emt 0:01:29]} 8. f3 {[%emt 0:00:08]} b5 {[%emt 0:01:49]} 9. Bb3 {[%emt 0:00:12]} Bb4 {[%emt 0:00:46]} 10. a3 {[%emt 0:00:18]} Bxc3+ {[%emt 0:02:06]} 11. bxc3 {[%emt 0:00:09]} Na5 {[%emt 0:00:17]} 12. Qd2 {[%emt 0:00:58]} Bb7 {[%emt 0:01:23]} 13. O-O {[%emt 0:00:12]} Rc8 {[%emt 0:01:15]} 14. Rab1 {[%emt 0:01:36]} O-O {[%emt 0:02:14]} 15. a4 {[%emt 0:00:30]} bxa4 {[%emt 0:03:55]} 16. Bxa4 {[%emt 0:00:13]} d5 {[%emt 0:00:55]} 17. exd5 {[%emt 0:01:02]} Nxd5 {[%emt 0:00:29]} 18. Bb3 {[%emt 0:06:16]} Rfd8 {[%emt 0:03:30]} 19. Bxd5 {[%emt 0:03:33]} Bxd5 {[%emt 0:01:43]} 20. Ra1 {[%emt 0:00:42]} Bc4 {[%emt 0:03:48]} 21. f4 {[%emt 0:01:35]} Bxf1 {[%emt 0:00:21]} 22. Kxf1 {[%emt 0:00:44]} Nc4 {[%emt 0:00:16]} 23. Qf2 {[%emt 0:00:08]} Nxe3+ {[%emt 0:00:11]} 24. Qxe3 {[%emt 0:00:05]} Qxc3 {[%emt 0:00:08]} 25. Qxc3 {[%emt 0:00:08]} Rxc3 {[%emt 0:00:06]} 26. Rxa6 {[%emt 0:00:09]} h6 {[%emt 0:00:14]} 27. Ra4 {[%emt 0:00:19]} Re3 {[%emt 0:02:00]} 28. Rb4 {[%emt 0:01:25]} Re4 {[%emt 0:01:17]} 29. Nc6 {[%emt 0:00:18]} Rxb4 {[%emt 0:00:07]} 30. Nxb4 {[%emt 0:00:06]} Rd4 {[%emt 0:00:06]} 31. Nd3 {[%emt 0:00:06]} Rc4 {[%emt 0:00:05]} 32. Kf2 {[%emt 0:00:30]} Rxc2+ {[%emt 0:00:08]} 33. Kf3 {[%emt 0:00:08]} Kf8 {[%emt 0:00:06]} 34. h3 {[%emt 0:00:07]} Ke7 {[%emt 0:00:06]} 35. g4 {[%emt 0:00:07]} Kd6 {[%emt 0:00:41]} 36. h4 {[%emt 0:00:42]} Rc3 {[%emt 0:00:39]} 37. Ke4 {[%emt 0:00:12]} Rc4+ {[%emt 0:00:13]} 38. Ke3 {[%emt 0:00:12]} Kd5 {[%emt 0:00:07]} 39. Ne5 {[%emt 0:00:51]} Re4+ {[%emt 0:00:51]} 40. Kf3 {[%emt 0:00:00]} Rxe5 {[%emt 0:00:00]} 41. fxe5 {[%emt 0:00:14]} Kxe5 {[%emt 0:00:16]} 42. Ke3 {[%emt 0:00:04]} f5 {[%emt 0:00:11]} 43. gxf5 {[%emt 0:00:08]} Kxf5 {[%emt 0:00:08]} 44. Kf3 {[%emt 0:00:05]} e5 {[%emt 0:00:06]} 45. Ke3 {[%emt 0:00:06]} Kg4 {[%emt 0:00:06]} 46. Ke4 {[%emt 0:00:03]} Kxh4 {[%emt 0:00:07]} 47. Kxe5 {[%emt 0:00:05]} g5 {[%emt 0:00:05]} 48. Kf5 {[%emt 0:00:03]} g4 {[%emt 0:00:06]} 49. Kf4 {[%emt 0:00:04]} Kh3 {[%emt 0:00:06]} 50. Ke3 {[%emt 0:00:04]} g3 {[%emt 0:00:06]} 51. Kf3 {[%emt 0:00:07]} Kh2 {[%emt 0:00:05]} 52. Ke2 {[%emt 0:00:06]} g2 {[%emt 0:00:05]} 53. Kf3 {[%emt 0:00:05]} g1=Q {[%emt 0:00:08]} 54. Kf4 {[%emt 0:00:07]} Qd4+ {[%emt 0:00:29]} 55. Kf3 {[%emt 0:00:05]} Kh3 {[%emt 0:00:13]} 56. Ke2 {[%emt 0:00:08]} Kg2 {[%emt 0:00:06]} 57. Ke1 {[%emt 0:00:04]} Kf3 {[%emt 0:00:05]} 58. Kf1 {[%emt 0:00:04]} Qa1# {[%emt 0:00:05]} 0-1

[Event "Romanian Championship 2024"]
[Site "Eforie Nord"]
[Date "2024.02.26"]
[Round "4.1"]
[White "Parligras, Mircea-Emilian"]
[Black "Gavrilescu, David"]
[Result "1/2-1/2"]
[ECO "E54"]
[WhiteElo "2539"]
[BlackElo "2523"]
[Annotator "TA"]
[PlyCount "54"]
[EventDate "2024.02.24"]
[EventType "swiss"]
[EventCountry "ROU"]
[SourceTitle "playchess.com"]
[Source "ChessBase"]
[SourceQuality "1"]
[TimeControl "40/5400+30:900+30"]

{[%evp 20,54,4,0,6,0,1,6,6,10,5,0,0,-21,0,-35,-36,-42,-30,-38,-25,-48,-29,-74,-80,-82,-79,-66,-18,-20,-11,-14,-13,-14,-8,-14,-10]} 1. d4 {[%emt 0:00:04]} Nf6 {[%emt 0:00:14]} 2. c4 {[%emt 0:00:07]} e6 {[%emt 0:00:07]} 3. Nf3 {[%emt 0:00:12]} d5 {[%emt 0:00:09]} 4. Nc3 {[%emt 0:00:12]} Bb4 {[%emt 0:00:16]} 5. e3 {[%emt 0:00:24][%cal Be2e3,Be3d4][%mdl 32]} O-O {[%emt 0:00:13]} 6. Bd3 {[%emt 0:00:27]} dxc4 {[%emt 0:00:52]} 7. Bxc4 {[%emt 0:00:08]} c5 {[%emt 0:00:05]} 8. O-O {[%emt 0:00:41]} cxd4 {[%emt 0:00:05]} 9. exd4 {[%emt 0:00:05]} b6 {[%emt 0:00:07]} 10. Qe2 {[%emt 0:00:36]} Bb7 {[%emt 0:00:53]} 11. Rd1 {[%emt 0:00:15]} h6 {[%emt 0:09:50] Against Bg5} 12. Bf4 {[%emt 0:07:52]} Nc6 {[%emt 0:02:56]} 13. d5 {[%emt 0:06:54]} exd5 {[%emt 0:01:37]} 14. Nxd5 {[%emt 0:01:59]} Nxd5 {[%emt 0:00:22]} 15. Bxd5 {[%emt 0:00:35]} Qf6 {[%emt 0:00:58]} 16. Qc4 {[%emt 0:07:54]} Bc5 {[%emt 0:02:54][%cal Oa8d8]} 17. b4 {[%emt 0:04:30] [#]} Na5 $1 {[%emt 0:01:50]} 18. bxa5 {[%emt 0:02:54]} Bxd5 {[%emt 0:01:06]} 19. Qxd5 {[%emt 0:00:05]} Qxf4 {[%emt 0:00:07]} 20. g3 {[%emt 0:11:42]} Qf6 {[%emt 0:04:22]} 21. axb6 {[%emt 0:03:26]} axb6 {[%emt 1:11:57]} 22. Kg2 {[%emt 0:10:40]} Rfd8 {[%emt 0:00:00]} 23. Qc4 {[%emt 0:06:32]} Rdc8 {[%emt 0:00:00]} (23... Qb2 $15 {is more appropriate.} 24. Rxd8+ Rxd8) 24. Rac1 $1 $11 {[%emt 0:01:39] The position is equal.} Ra3 {[%emt 0:00:00]} 25. Rd3 {[%emt 0:02:26] [#] And now Rxa3 would win.} Rca8 {[%emt 0:00:00]} 26. Rc2 {[%emt 0:04:55]} Qc6 {[%emt 0:00:00]} 27. Rcd2 {[%emt 0:05:34] Black must now prevent Rxa3.} Rxd3 {[%emt 0:00:00] Weighted Error Value: White=0.10 (very precise) /Black=0.08 (flawless) .  Mistake:       	---       	Black=1      Inaccurate:     	White=2     	---        OK:         	White=6     	Black=10     Strong:       	White=1     	---        Brilliant:      	---       	Black=1} 1/2-1/2

[Event "Romanian Championship 2024"]
[Site "Eforie Nord"]
[Date "2024.02.26"]
[Round "4.2"]
[White "Lupulescu, Constantin"]
[Black "Prisacaru, Stefan-Emilian"]
[Result "1-0"]
[ECO "B11"]
[WhiteElo "2589"]
[BlackElo "2289"]
[Annotator "TA"]
[PlyCount "97"]
[EventDate "2024.02.24"]
[EventType "swiss"]
[EventCountry "ROU"]
[SourceTitle "playchess.com"]
[Source "ChessBase"]
[SourceQuality "1"]
[TimeControl "40/5400+30:900+30"]

{[%evp 10,97,15,0,26,-8,35,35,39,-6,7,7,13,7,14,16,13,0,10,5,33,19,16,18,41,45,36,32,36,34,66,64,74,66,63,68,63,68,64,64,89,83,80,76,114,101,110,116,134,91,143,115,181,141,178,176,197,175,175,175,245,213,251,161,289,222,200,0,299,299,349,346,352,353,358,357,358,349,334,294,383,276,398,387,417,420,431,438,420,445]} 1. e4 {[%emt 0:00:01]} c6 {[%emt 0:00:03]} 2. Nc3 {[%emt 0:00:29]} d5 {[%emt 0:00:06]} 3. Nf3 {[%emt 0:00:04]} Bg4 {[%emt 0:00:08]} 4. h3 {[%emt 0:00:07]} Bxf3 {[%emt 0:00:05]} 5. Qxf3 {[%emt 0:00:06]} e6 {[%emt 0:00:04]} 6. g3 {[%emt 0:00:21]} Nd7 {[%emt 0:00:12]} 7. Qe2 {[%emt 0:03:31]} dxe4 {[%emt 0:05:22]} 8. Nxe4 {[%emt 0:00:50]} Ngf6 {[%emt 0:00:08] White is slightly better.} 9. Ng5 {[%emt 0:04:29]} Qc7 {[%emt 0:05:04]} 10. Bg2 {[%emt 0:02:29]} Bd6 {[%emt 0:13:38][%cal Od6g3]} 11. O-O {[%emt 0:05:58]} O-O {[%emt 0:00:32]} 12. d3 {[%emt 0:05:00]} Rfe8 {[%emt 0:04:49]} 13. Be3 {[%emt 0:12:21]} e5 {[%emt 0:10:24]} 14. Rad1 {[%emt 0:01:15]} h6 {[%emt 0:02:18]} 15. Ne4 {[%emt 0:01:39]} Nxe4 {[%emt 0:01:09]} 16. dxe4 {[%emt 0:00:38]} Nc5 {[%emt 0:09:02]} 17. Qg4 {[%emt 0:12:29]} Kh8 {[%emt 0:03:52]} 18. Bxc5 {[%emt 0:03:13]} Bxc5 {[%emt 0:00:30]} 19. Rd7 {[%emt 0:00:05]} Qc8 {[%emt 0:03:53] Black is weak on the light squares} 20. Rfd1 {[%emt 0:06:32][%cal Og4h5,Bf1d1,Bd1d7,Bd7a7][%mdl 32] White is more active.} Re7 {[%emt 0:21:20]} 21. Rxe7 {[%emt 0:20:58]} Qxg4 {[%emt 0:00:05]} 22. hxg4 {[%emt 0:00:03]} Bxe7 $16 {[%emt 0:00:07][%mdl 4096] Endgame. KRB-KRB} 23. Rd7 {[%emt 0:00:09][%csl LRb7,LRe7]} Bc5 {[%emt 0:00:03]} 24. Bf1 {[%emt 0:07:29]} b6 {[%emt 0:05:01]} 25. Bc4 {[%emt 0:02:41]} f6 {[%emt 0:13:09]} 26. Ba6 {[%emt 0:00:54]} Re8 {[%emt 0:00:50]} 27. Rxa7 {[%emt 0:00:47]} Rd8 {[%emt 0:00:52]} 28. Bd3 {[%emt 0:00:38]} Bd4 {[%emt 0:00:59]} 29. b3 {[%emt 0:01:06]} Bc3 {[%emt 0:00:31]} (29... Rc8 $142 30. Ba6 Rd8) 30. Rb7 {[%emt 0:02:08]} Ba5 {[%emt 0:00:09]} (30... b5 $16 {is a better defense.} 31. Ra7 b4) 31. Kf1 {[%emt 0:01:29]} c5 {[%emt 0:00:21]} 32. a3 {[%emt 0:00:48]} Rd6 {[%emt 0:00:47]} 33. Ke2 {[%emt 0:01:11]} Bc3 {[%emt 0:00:43]} 34. f4 {[%emt 0:01:12][%cal Bf2f4,Bf4f5][%mdl 32]} Bb2 {[%emt 0:00:33]} (34... g5 $142 35. f5 c4) 35. Ra7 {[%emt 0:00:55]} Kh7 {[%emt 0:00:17]} 36. Kf3 {[%emt 0:00:40]} Bc3 {[%emt 0:00:38]} (36... c4 {was necessary.} 37. bxc4 (37. Bxc4 Rd2 $16) 37... Rc6) 37. Rb7 {[%emt 0:01:44]} Bb2 {[%emt 0:00:28]} 38. Ra7 {[%emt 0:00:36]} (38. a4 $142) 38... Bc3 $1 $18 {[%emt 0:00:01]} 39. f5 {[%emt 0:00:38]} Rd8 {[%emt 0:00:44]} 40. Bc4 {[%emt 0:00:00]} Ba5 {[%emt 0:00:00]} 41. Bd5 {[%emt 0:01:55]} Rb8 {[%emt 0:06:10]} 42. Ke2 {[%emt 0:04:28]} Bc3 {[%emt 0:01:20]} 43. a4 {[%emt 0:02:38]} Ba5 {[%emt 0:01:10]} 44. Ra6 {[%emt 0:02:19]} ({Not} 44. g5 hxg5 45. Kd3 c4+ 46. Kxc4 (46. Bxc4 Rd8+ 47. Bd5 Rc8 $18) (46. bxc4 Rc8 $18) 46... Rc8+ 47. Kb5 Rc5+ 48. Ka6 g4 $18) 44... Rd8 {[%emt 0:01:26]} 45. Ke3 {[%emt 0:02:02]} Rc8 {[%emt 0:03:00]} (45... Rb8 {keeps fighting.} 46. Kd3 Be1) 46. Kd3 {[%emt 0:00:21]} c4+ {[%emt 0:02:24]} 47. Bxc4 {[%emt 0:00:27]} Rd8+ {[%emt 0:00:06]} 48. Bd5 {[%emt 0:01:17] [#] c3 would now be deadly.} Rc8 {[%emt 0:00:04]} 49. c4 {[%emt 0:00:55] Weighted Error Value: White=0.19 (very precise) /Black=0.22 (precise) .  Mistake:       	White=1     	Black=5      Inaccurate:     	White=4     	Black=5      OK:         	White=17    	Black=14     Best:        	White=2     	---        Strong:       	---       	Black=1} 1-0